Cogmind - Beta 16 @@@ ROGUE MODE // 2025.12.04 @ 17:45:01 Player: FR-13D Result: Destroyed by A5-W45(R) with Subdweller Laser Performance ------------- Evolutions (0) 0 Regions Visited (2) 400 Robots Destroyed (43) 215 Value Destroyed (1019) 1019 Prototype IDs (2) 40 Alien Tech Used (0) 0 Bonus (0) 0 TOTAL SCORE: 1674 Bonus ------- None Cogmind --------- Core Integrity 0/250 Matter 249/300 Energy 86/100 System Corruption 0% Temperature Cool (6) Movement Treading (240) Ox1 Location -10/Subcaves Parts ------- > --- POWER (1) -------- (None) > --- PROPULSION (2) --- Improved Treads Improved Treads > --- UTILITY (2) ------ Huge Storage Unit Light Armor Plating > --- WEAPON (2) ------- Light Assault Rifle Battle Rifle > --- INVENTORY (25) --- Improved Ion Engine Improved Ion Engine Light Treads Improved Treads Improved Treads Wheel Humpback Small Matter Pod (50) Small Matter Pod (50) Targeting Computer Scrap Shield Light Assault Rifle Light Assault Rifle Battle Cannon Battle Cannon Grenade Launcher Grenade Launcher Grenade Launcher Grenade Launcher Subdweller Shrapnel Launcher Peak State ------------ > --- POWER ------------ Makeshift Power Source > --- PROPULSION ------- Improved Treads Improved Treads > --- UTILITY ---------- Huge Storage Unit Makeshift Kinetic Plating > --- WEAPON ----------- Light Assault Rifle Heavy Battle Rifle > --- INVENTORY -------- Improved Ion Engine Improved Ion Engine Light Treads Improved Treads Improved Treads Wheel Humpback Small Matter Pod Small Matter Pod Targeting Computer Light Armor Plating Scrap Shield Light Assault Rifle Light Assault Rifle Battle Rifle Battle Cannon Battle Cannon Grenade Launcher Grenade Launcher Grenade Launcher Grenade Launcher Subdweller Shrapnel Launcher [Rating: 21] Favorites ----------- Power Improved Ion Engine Engine Improved Ion Engine Propulsion Wheel Treads Light Treads Wheel Wheel Utility Huge Storage Unit Device Seismic Detector Storage Huge Storage Unit Protection Makeshift Kinetic Plating Weapon Medium Laser Energy Gun Medium Laser Ballistic Gun Light Assault Rifle Launcher Grenade Launcher Build | -11 -10 -10 ------- Run | Yrd Mat Sub Slots Evolved . | . . . Power . | . . . Propulsion . | . . . Utility . | . . . Weapon . | . . . Parts Attached 31 | 9 13 9 Power 5 | 1 2 2 Engine 5 | 1 2 2 Core . | . . . Reactor . | . . . Propulsion 11 | 4 5 2 Treads 4 | . 2 2 Leg . | . . . Wheel 7 | 4 3 . Hover . | . . . Flight . | . . . Utility 7 | 2 3 2 Device 1 | 1 . . Storage 4 | 1 3 . Processor . | . . . Hackware . | . . . Protection 2 | . . 2 Artifact . | . . . Weapon 8 | 2 3 3 Energy Gun 1 | . 1 . Energy Cannon . | . . . Ballistic Gun 5 | 2 . 3 Ballistic Cannon . | . . . Launcher 2 | . 2 . Special Weapon . | . . . Impact Weapon . | . . . Slashing Weapon . | . . . Piercing Weapon . | . . . Special Melee Weapon . | . . . Unidentified Prototypes . | . . . Parts Lost 8 | . . 8 Power 2 | . . 2 Propulsion 2 | . . 2 Utility 2 | . . 2 Weapon 2 | . . 2 Highest Loss Streak 4 | . . 4 To Critical Strikes . | . . . Average Backups 18 | 3 13 22 Power 1 | . 1 2 Propulsion 5 | 1 5 4 Utility 3 | . 1 4 Weapon 8 | 1 4 10 Tool/Special . | . . . Unused Backups 22 | . 4 18 Power 3 | . 1 2 Propulsion 3 | . 1 2 Utility 6 | . . 6 Weapon 10 | . 2 8 Tool/Special . | . . . Average Slot Usage (%) 96 | . 100 94 Engine 11 | . 14 10 Treads 9 | . . 13 Wheel 18 | . 27 14 Device 5 | . 14 1 Storage 14 | . 14 14 Protection 7 | . . 11 Energy Gun 9 | . 9 9 Ballistic Gun 13 | . 12 14 Launcher 5 | . 6 4 Peak Build Rating 21 | 7 10 21 Average Rating 13 | 5 9 15 On Entrance 5 | . 7 10 Avg Prop Armor Cover (%) 10 | . . 10 Naked Turns . | . . . Heaviest Build 98 | 11 93 98 Greatest Support 43 | 32 40 43 Greatest Overweight (x) 9 | 2 4 9 Average Overweight (x) 5 | . 2 8 Largest Inventory Capacity 25 | 8 25 25 Average Capacity 22 | 7 18 25 Most Carried 25 | 8 22 25 Average Carried 19 | 4 13 23 Final Capacity 25 | 8 25 25 Final Carried 22 | 7 22 22 Class Distribution -------------------- 100% | Mutant Dominant Class ---------------- Mutant | -10/Materials Mutant | -10/Subcaves Resources | -11 -10 -10 ----------- Run | Yrd Mat Sub Matter Collected 1238 | 332 339 567 Remotely . | . . . Salvage Created 1020 | 175 362 483 Parts 93 | 24 30 39 Haulers Intercepted 1 | . 1 . Recyclers Shooed . | . . . Parts Field Recycled . | . . . Retrieved Matter . | . . . Parts Self-Destructed 16 | . . 16 Prevented . | . . . Parts Restored . | . . . Kills | -11 -10 -10 ------- Run | Yrd Mat Sub Combat Hostiles Destroyed 29 | . 13 16 Guns 15 | . 5 10 AOE 14 | . 8 6 Classes Destroyed 8 | 3 4 1 Worker 5 | 1 4 . Tunneler 6 | 5 1 . Hauler 1 | . 1 . Recycler 1 | 1 . . Watcher 1 | . 1 . Swarmer 9 | . 9 . Grunt 8 | . 4 4 Subdweller 12 | . . 12 Best Kill Streak 5 | 5 3 2 Combat Bots Only 3 | . 3 2 Max Kills in Single Turn 2 | 1 2 2 Gunslinging . | . . . Exploded 2 | . 2 2 Melee . | . . . Uniques/NPCs Destroyed . | . . . Combat | -11 -10 -10 -------- Run | Yrd Mat Sub Hostile Shots Fired 117 | . 33 84 Missed 29 | . 10 19 Hits 88 | . 23 65 Projectile 88 | . 23 65 Critical Strikes 3 | . 1 2 Damage Taken 1748 | . 359 1389 Core 257 | . 34 223 Absorbed by Shields . | . . . Ignored by Resistances 19 | . . 19 Core Remaining (%) 100 | 100 . . Volleys Fired 157 | 26 51 80 Largest 2 | 2 2 2 Hottest 83 | 40 80 83 Shots Fired 266 | 52 82 132 Gun 233 | 52 74 107 Cannon . | . . . Launcher 33 | . 8 25 Special . | . . . Kinetic 161 | 52 29 80 Thermal 72 | . 45 27 Explosive 33 | . 8 25 Electromagnetic . | . . . Robot Hit Streak 20 | 5 5 20 Robot Miss Streak 10 | 3 10 2 Penetration Max . | . . . Secondary Targets 2 | . 1 1 Max Gunslinging Chain 1 | . 1 1 Shots Hit Robots 150 | 30 35 85 Core Hits 74 | 15 27 32 Critical Kills 1 | . . 1 Critical Parts Destroyed . | . . . Critical Strikes 6 | . 2 4 Burn 4 | . 2 2 Destroy 2 | . . 2 Melee Attacks . | . . . Impact . | . . . Slashing . | . . . Piercing . | . . . Sneak Attacks . | . . . Combat Hostiles . | . . . Follow-up Attacks . | . . . Damage Inflicted 3033 | 247 890 1896 Guns 1805 | 247 404 1154 Cannons . | . . . Explosions 1205 | . 463 742 Melee . | . . . Ramming 23 | . 23 . Kinetic 1349 | 247 112 990 Thermal 624 | . 460 164 Explosive 1037 | . 295 742 Electromagnetic . | . . . Impact . | . . . Slashing . | . . . Piercing . | . . . Highest Corruption . | . . . Average Corruption . | . . . Corruption Purged . | . . . Corruption Blocked . | . . . Overload Shots . | . . . Overflow Damage 86 | . 78 8 Projectiles . | . . . Explosions 86 | . 78 8 Melee . | . . . Knockbacks . | . . . Impact . | . . . Kinetic . | . . . Secondary . | . . . Self-Inflicted Damage 241 | . 176 65 Shots 6 | . 3 3 Rammed 3 | . 3 . Targets Rammed 3 | . 3 . Kicked . | . . . Crushed . | . . . Highest Temperature 129 | . 129 1 Average Temperature 29 | . 30 1 Received Heat Transfer 342 | . . 342 Siege Activations . | . . . Martial Activations . | . . . Shielding Activations . | . . . Robots Disrupted . | . . . Combat Hostiles . | . . . Robots Corrupted . | . . . Combat Hostiles . | . . . Parts Fried . | . . . Impact Corruptions . | . . . Robots Melted . | . . . Combat Hostiles . | . . . Parts Melted 1 | . 1 . Heat Transferred 1728 | . 1099 629 Parts Sabotaged . | . . . Parts Stolen . | . . . Parts Stripped . | . . . Power Chain Reactions . | . . . Alert | -11 -10 -10 ------- Run | Yrd Mat Sub Maximum Alert Level 1 | . 1 . Low Security (%) 61 | 100 56 . Level 1 38 | . 43 . Level 2 . | . . . Level 3 . | . . . Level 4 . | . . . Level 5 . | . . . High Security . | . . . Max Security . | . . . Peak Influence 313 | 15 313 . Initial . | . . . Average 121 | 2 136 . Influence Increases 805 | 35 640 130 Destroy 0b10 Robot/C 340 | . 260 80 Destroy 0b10 Robot/NC 70 | 35 35 . Destroy Leader 64 | . 44 20 Successful Hack 26 | . 26 . Disable Machine 120 | . 120 . Destroy Structure 125 | . 125 . Partial Spotted 15 | . 15 . Lose Combat Pursuer 45 | . 15 30 Influence Decreases 805 | 35 341 429 Entered New Map 144 | . . 144 Time Decay 621 | 35 341 245 Lost Part 40 | . . 40 Squads Dispatched 1 | . 1 . Investigation . | . . . Extermination . | . . . Reinforcement 1 | . 1 . Assault . | . . . Garrison . | . . . Intercept . | . . . Searches Triggered . | . . . Construction Impeded . | . . . Haulers Reinforced . | . . . Active Scanning Responses . | . . . Cargo Convoy Interrupts . | . . . Stealth | -11 -10 -10 --------- Run | Yrd Mat Sub Distress Signals . | . . . Communications Jammed . | . . . Distress Signals . | . . . Times Spotted 42 | . 23 19 Peak Tracking Total 4 | . 4 3 Tactical Retreats 2 | . 1 1 Traps | -11 -10 -10 ------- Run | Yrd Mat Sub Traps Triggered 2 | . 2 . Indirectly . | . . . Trap Hack Attempts . | . . . Triggered . | . . . Disarmed . | . . . Reprogrammed . | . . . Reused . | . . . Traps Extracted . | . . . Installed . | . . . Triggered . | . . . Machines | -11 -10 -10 ---------- Run | Yrd Mat Sub Machines Disabled 8 | . 8 . Max in Single Turn 3 | . 3 . Machines Repaired . | . . . Machines Dismantled . | . . . Machines Sabotaged . | . . . Overloaded Fab Kills . | . . . Hacking | -11 -10 -10 --------- Run | Yrd Mat Sub Machines Accessed 9 | . 8 1 Terminals 6 | . 6 . Fabricators . | . . . Repair Stations . | . . . Recycling Units 2 | . 2 . Scanalyzers . | . . . Garrison Access . | . . . Total Hacks 27 | . 23 4 Successful 16 | . 12 4 Failed 11 | . 11 . Catastrophic 3 | . 3 . Database Lockouts . | . . . Manual 15 | . 15 . Terminals 18 | . 18 . Fabricators . | . . . Repair Stations . | . . . Recycling Units 5 | . 5 . Scanalyzers . | . . . Garrison Access . | . . . Terminal Hacks 8 | . 4 4 Record 4 | . . 4 Robot Analysis 1 | . 1 . Prototype ID Bank 1 | . 1 . Level Access Points 1 | . 1 . Locate Traps 1 | . 1 . Fabricator Hacks . | . . . Repair Station Hacks . | . . . Recycling Unit Hacks 3 | . 3 . Process 2 | . 2 . Retrieve Matter 1 | . 1 . Scanalyzer . | . . . Garrison Access Hacks . | . . . Unauthorized Hacks 4 | . 4 . Terminals 4 | . 4 . Botnet 4 | . 4 . Fabricators . | . . . Repair Stations . | . . . Recycling Units . | . . . Scanalyzers . | . . . Garrison Access . | . . . Data Cores Recovered . | . . . Used . | . . . Hacking Detections 6 | . 6 . Full Trace Events . | . . . Feedback Events . | . . . Feedback Blocked . | . . . Robot Schematics Acquired . | . . . Robots Built . | . . . Authchips . | . . . Time . | . . . Total Robot Build Rating . | . . . Part Schematics Acquired . | . . . Parts Built . | . . . Authchips . | . . . Time . | . . . Total Part Build Rating . | . . . Part Studies Acquired . | . . . Parts Repaired . | . . . Time . | . . . Parts Recycled . | . . . Recycled Matter 1047 | . 1047 . Retrieved Matter 75 | . 75 . Retrieved Components . | . . . Parts Scanalyzed . | . . . Part Schematics Acquired . | . . . Parts Damaged . | . . . Bothacking | -11 -10 -10 ------------ Run | Yrd Mat Sub Used RIF Installer . | . . . Robots Hacked . | . . . Non-combat . | . . . Combat . | . . . Robot Hacks Applied . | . . . Relay Couplers Released . | . . . Fabnet Peak Effective % . | . . . Robots Rewired . | . . . Allies Hacked . | . . . Hacks Repelled . | . . . Allies | -11 -10 -10 -------- Run | Yrd Mat Sub Total Allies . | . . . Largest Group . | . . . Highest-Rated Group . | . . . Highest-Rated Ally . | . . . Total Orders . | . . . Ally Attacks . | . . . Total Damage . | . . . Kills . | . . . Allies Corrupted . | . . . Allies Melted . | . . . Intel | -11 -10 -10 ------- Run | Yrd Mat Sub Active Infowar (turns) 1688 | 53 1332 303 Seismic 1688 | 53 1332 303 Robot Analysis Total 1 | . 1 . Derelict Logs Recovered 2 | . . 2 Drone Launches . | . . . Drone Recoveries . | . . . Exploration | -11 -10 -10 ------------- Run | Yrd Mat Sub Turns Passed 4573 | 172 1332 3069 Spaces Moved 2474 | 91 1013 1370 Core 17 | 17 . . Treads 5 | . 3 2 Legs . | . . . Wheels 2452 | 74 1010 1368 Hover . | . . . Flight . | . . . Fastest Speed 50 | 50 80 140 Average Speed 161 | 91 112 202 Slowest Speed 320 | 150 320 320 Overloaded Moves . | . . . Propulsion Burnouts . | . . . Robots Hopped . | . . . Potential Cave-ins . | . . . Cave-ins Triggered . | . . . Exploration Rate (%) 60 | 5 98 77 Regions Visited 2 Branch Regions 1 Pre-discovered Areas 1 | . . 1 Known Exits Taken . | . . . Unknown Exits Taken 2 | 1 1 . Scrap Searched 4 | . . 4 Spaces Dug 7 | . 7 . Terrain Destroyed 200 | . 129 71 Melee . | . . . Projectile 2 | . . 2 AOE 198 | . 129 69 Terrain Rammed . | . . . Walls Destroyed . | . . . Machines Disabled . | . . . Actions | -11 -10 -10 --------- Run | Yrd Mat Sub Total 2796 | 134 1134 1528 Wait 58 | . 14 44 Move 2472 | 90 1012 1370 Hop . | . . . Pick Up 35 | 7 20 8 Fast Attach 11 | 7 2 2 Attach 5 | . . 5 Detach . | . . . Swap 35 | 2 19 14 Drop 20 | 2 13 5 Fire 157 | 26 51 80 Melee . | . . . Ram 3 | . 3 . Kick . | . . . Crush . | . . . Escape Stasis . | . . . Rewire . | . . . Trap . | . . . Miscellaneous . | . . . Route ------- -11/Scrapyard -10/Materials (discovered 5 exits: *Mat x3 / [*Min] / *Sub) -10/Subcaves (discovered 3 exits: [*Mat x2] / Rec) History --------- Turn | Location | Event 25 | -11/Scrapyard | Discovered new exit (range 15) 173 | -11/Scrapyard | Entered Materials 271 | -10/Materials | Discovered new exit (range 15) 318 | -10/Materials | Build established: Mutant 336 | -10/Materials | Discovered new exit (range 15) 371 | -10/Materials | Discovered new exit (range 16) 457 | -10/Materials | Identified exit to Materials 472 | -10/Materials | Discovered new exit (range 8) 1505 | -10/Materials | Entered Subcaves 1506 | -10/Subcaves | Approached by a straggling Scientist 1854 | -10/Subcaves | Lost 4 parts (1p2n1u) 2102 | -10/Subcaves | Shifting Twisted Machinery released Hvy. Battle Rifle 2179 | -10/Subcaves | A swath of the cavern ceiling suddenly collapsed 2222 | -10/Subcaves | Shifting Twisted Machinery released Battle Cannon 2506 | -10/Subcaves | Shifting Twisted Machinery released Sub. Power Source 2591 | -10/Subcaves | Shifting Twisted Machinery released Battle Cannon 2639 | -10/Subcaves | Discovered new exit (range 13) 3007 | -10/Subcaves | Core integrity fell below 50% 3183 | -10/Subcaves | Learned location of Zion (-7) 3183 | -10/Subcaves | Met a Zionite searching for "candidates" 3215 | -10/Subcaves | Learned 2 Materials zone layouts 3331 | -10/Subcaves | A swath of the cavern ceiling suddenly collapsed 3422 | -10/Subcaves | Shifting Twisted Machinery released Sub. Monowheel 3437 | -10/Subcaves | Shifting Twisted Machinery released Mak. Sword 3438 | -10/Subcaves | Ambushed by angry Subdweller bent on revenge 3749 | -10/Subcaves | Visited Clippyterm 3755 | -10/Subcaves | Identified exit to Recycling 4040 | -10/Subcaves | Core integrity fell below 20% 4326 | -10/Subcaves | Discovered new exit (range 6) 4369 | -10/Subcaves | Learned 4 Materials zone layouts 4545 | -10/Subcaves | A Subdweller sparked back to life 4574 | -10/Subcaves | Destroyed by A5-W45(R) with Subdweller Laser Last Messages --------------- 04117_ Acquired 48 matter. 04326_ EXIT=FOUND 04369_ Acquired derelict log, extracted data. Data stored: Materials zone layouts (x4). 04382_ Searching scrap... 04382_ Found Battle Rifle. 04382_ Found Battle Cannon. 04382_ Found 54 Matter. 04413_ 83-KD5(R): "OHNO!" 04426_ 83-KD5(R) destroyed. 04448_ Acquired 24 matter. 04545_ A5-W45(R) creaks and sparks as it begins to move. 04548_ VB-30U(R) suffers critical hit (Destroy). 04548_ VB-30U(R) destroyed. 04548_ Switching to secondary target: A5-W45(R). 04553_ A5-W45(R) affixes Scrap Shield Fragment to Scrap Shield. 04556_ Mak. Power Source destroyed. 04564_ Mak. Kinetic Plating destroyed. 04566_ Hvy. Battle Rifle destroyed. 04571_ V8-PTV(R) affixes Scrap Shield Fragment to Scrap Shield. Map ----- +----------------------------------------------------+ | ??????????????# "#### #???????# ### | | ??????????????# #??# "??????# ## #?### | | ??????????????### #??## "" ????# ?##?## | | ????????????????# ##???# #????# ?????# | | ???????????????## ##???####????#??????# | | ???????????????# ###???????????????# # | | ???????????????# ##??????? ????# ## | | ???????????????# ##???? ????????? ?# | | ???????????????## ### ##????????#??? | | ????????????????## #???????????? | | ?????????????????## ##???????????# | | ??????????????????# ## #???????????## | | ??????????????????## ######??????????????# | | ??????????????????# #??????????????????# | | ??????????????????# #??????????????????## | | ??????????????????# #???????????????????# | | ??????????????????## ##???????????????????? | | ??????????????????# #???????????????????? | | ??????????????????# #???????????????????? | | ??????????????????# ##???????????????????? | | ??????????????????## #???????????????????? | | ???????????????????# #???????????????????? | | ??????????????????## #####????????????????? | | ?????????????????##*R# #????????????????? | | ????????????????## !%! <#????????????????? | | ????????????????# @;] <#????????????????? | | ???????????????# <